bitfinex/quotes_ETHUSD_20220117
["timestamp","ask_amount","ask_price","bid_price","bid_amount"]
[1642423346003,1.55978737,3280.2,3279.3,0.00170527]
[1642423346004,0.0022737,3280.0,3279.3,0.00170527]
[1642423346204,0.00284212,3280.1,3279.3,0.00170527]
[1642423346411,0.00170527,3279.9,3279.3,0.00170527]
[1642423346715,2.63238613,3280.1,3279.3,0.00170527]
[1642423346716,0.00113685,3279.8,3279.3,0.00170527]
[1642423347106,0.0022737,3280.0,3279.3,0.00170527]
[1642423347505,0.00170527,3279.9,3279.3,0.00170527]
[1642423347904,1.42973146,3279.8,3279.3,0.00170527]
[1642423348351,1.42859461,3279.8,3279.3,0.00170527]
[1642423348958,1.42859461,3279.8,3279.1,0.00284211]
[1642423349155,1.72859461,3279.8,3279.1,0.00284211]
[1642423349360,3.64752747,3279.7,3279.1,0.00284211]
[1642423349854,3.64752747,3279.7,3278.9,0.00397896]
[1642423351054,3.94752747,3279.7,3278.9,0.00397896]
[1642423351360,1.11299207,3279.3,3278.9,0.00397896]
[1642423351555,1.41299207,3279.3,3278.9,0.00397896]
[1642423351755,2.65465692,3279.2,3278.9,0.00397896]
[1642423352206,1.41299207,3279.3,3278.1,0.00852635]
[1642423352601,0.99829892,3279.2,3278.1,0.00852635]
[1642423352802,3.66262427,3279.2,3278.5,1.27871984]
[1642423353004,0.99829892,3279.2,3278.5,1.27871984]
[1642423353203,0.99829892,3279.2,3278.6,0.00568423]
[1642423354303,0.99829892,3279.2,3278.1,0.00852635]
[1642423355004,0.99829892,3279.2,3278.4,1.27476623]
[1642423355504,0.99829892,3279.2,3278.5,0.00625265]
[1642423356561,3.63566926,3279.2,3278.5,0.00625265]
[1642423356759,1.51625215,3278.8,3278.5,0.00625265]
[1642423357163,1.51625215,3278.8,3278.0,4.9523]
[1642423357164,1.81625215,3278.8,3278.1,0.00852635]
[1642423357361,0.3,3278.8,3278.1,0.00852635]
[1642423357761,0.99829892,3278.7,3278.1,0.00852635]
[1642423357962,1.29829892,3278.7,3278.1,0.00852635]
[1642423358565,0.99829892,3278.7,3278.1,0.00852635]
[1642423358962,0.99829892,3278.7,3278.6,1.23326302]
[1642423359367,1.6366072,3279.1,3278.6,1.23894725]
[1642423359805,1.6366072,3279.1,3278.7,0.00511581]
[1642423360003,0.3,3279.1,3278.8,0.05204316]
[1642423360402,1.55978737,3279.5,3279.0,0.05476913]
[1642423360602,2.85978737,3279.5,3278.9,0.00397896]
[1642423360802,2.85978737,3279.5,3279.1,0.00284211]
[1642423360803,1.85978737,3279.5,3279.1,0.00284211]
[1642423361004,1.47271535,3278.8,3278.1,0.00852635]
[1642423361303,1.77271535,3278.8,3278.1,0.00852635]
[1642423361702,1.0,3279.5,3278.6,1.41035314]
[1642423362105,2.85978737,3279.5,3278.7,0.00511581]
[1642423363003,1.48545645,3279.3,3278.7,0.00511581]
[1642423363454,1.78545645,3279.3,3278.7,0.00511581]
[1642423364261,1.78545645,3279.3,3278.1,0.00852635]
[1642423364456,1.39015109,3278.8,3278.1,0.00852635]
[1642423364655,0.3,3279.3,3278.1,0.00852635]
[1642423364860,1.0625392,3279.4,3278.3,1.49156559]
[1642423365055,1.0625392,3279.4,3278.1,0.00852635]
[1642423365056,3.589496,3279.3,3278.1,0.00852635]
[1642423365258,3.589496,3279.3,3277.9,3.3065]
[1642423365259,0.3,3279.1,3278.4,0.00682108]
[1642423365457,0.44,3279.0,3278.1,0.00852635]
[1642423365656,0.44,3279.0,3278.0,0.00909477]
[1642423365861,0.74,3279.0,3278.0,0.00909477]
[1642423366256,1.44417478,3278.2,3277.9,1.09556626]
[1642423366658,1.44417478,3278.2,3278.0,0.00909477]
[1642423367110,1.44417478,3278.2,3277.5,0.01193689]
[1642423367307,1.74417478,3278.2,3277.5,0.01193689]
[1642423367707,1.74417478,3278.2,3277.7,1.11262207]
[1642423368103,1.74417478,3278.2,3277.8,0.01023162]
[1642423368706,1.74417478,3278.2,3277.5,0.01193689]
[1642423369506,1.74417478,3278.2,3277.6,1.28327611]
[1642423369907,1.74417478,3278.2,3277.7,0.01080004]
[1642423370307,1.65287478,3278.2,3277.7,0.01080004]
[1642423370507,1.63987478,3278.2,3277.7,0.01080004]
[1642423371355,1.54847478,3278.2,3277.7,0.01080004]
[1642423371558,1.44417478,3278.2,3277.4,0.01250531]
[1642423372255,1.44417478,3278.2,3277.3,1.4745316]
[1642423372658,1.44417478,3278.2,3277.4,0.01250531]
[1642423373155,0.3,3278.2,3277.4,0.01250531]
[1642423373357,0.3,3278.3,3277.5,0.05508587]
[1642423373555,2.245,3278.7,3277.4,0.01250531]
[1642423373854,1.545,3278.7,3277.4,0.01250531]
[1642423374253,1.545,3278.7,3277.5,1.40015964]
[1642423374254,1.2169231,3278.4,3277.5,1.40015964]
[1642423374459,1.2169231,3278.4,3277.4,0.01250531]
[1642423374708,0.3,3278.3,3277.6,0.01136847]
[1642423374907,0.3,3278.3,3277.3,1.4745316]
[1642423374908,0.3,3278.3,3277.4,0.01250531]
[1642423375507,0.3,3278.3,3277.4,1.43537255]
[1642423375908,0.3,3278.3,3277.5,0.01193689]
[1642423376311,1.545,3278.7,3277.6,0.07402281]
[1642423376510,1.545,3278.7,3277.6,0.01253255]
[1642423376711,1.245,3278.7,3277.8,0.05184615]
[1642423376911,1.245,3278.7,3278.5,1.11326815]
[1642423377113,0.13819997,3278.8,3278.6,0.05818216]
[1642423377314,1.78107685,3279.1,3278.6,0.00568423]
[1642423377514,1.78107685,3279.1,3278.7,0.00511581]
[1642423377714,1.1691,3279.4,3278.6,0.00568423]
[1642423377918,4.57026422,3279.6,3278.6,0.00568423]
[1642423377919,3.34086422,3279.6,3278.6,0.00568423]
[1642423378354,4.10334422,3279.6,3278.6,0.00568423]
[1642423378553,1.0955129,3279.5,3278.6,0.00568423]
[1642423380760,1.43961105,3279.4,3278.6,0.00568423]
[1642423381054,1.73961105,3279.4,3278.3,0.0073895]
[1642423381454,1.11343932,3278.9,3278.3,0.0073895]
[1642423381855,1.41343932,3278.9,3278.3,0.0073895]
[1642423382304,1.41343932,3278.9,3277.9,0.0096632]
[1642423382904,1.41343932,3278.9,3278.1,1.31667648]
[1642423383304,1.34766795,3278.8,3278.2,0.00795793]
[1642423383905,1.34766795,3278.8,3278.0,0.00909477]
[1642423384305,1.34766795,3278.8,3277.9,0.0096632]
[1642423386461,1.34766795,3278.8,3278.0,1.16367566]
[1642423386661,1.34766795,3278.8,3278.1,0.06766103]
[1642423386862,1.34766795,3278.8,3278.1,0.07618738]
[1642423387064,1.34766795,3278.8,3278.2,0.05718313]
[1642423387262,1.34766795,3278.8,3278.2,0.00795793]
[1642423387463,1.34766795,3278.8,3278.3,0.0073895]
[1642423387665,1.34766795,3278.8,3278.2,0.00795793]
[1642423388468,1.22581932,3279.0,3278.1,0.00852635]
[1642423388664,1.22581932,3279.0,3278.1,2.41861989]
[1642423389065,1.22581932,3279.0,3278.2,0.00795793]
[1642423389466,1.34766795,3278.9,3278.1,2.39279386]
[1642423389717,1.34766795,3278.9,3278.1,0.00852635]
[1642423389916,1.34766795,3278.9,3278.2,0.00795793]
[1642423390119,1.34766795,3278.9,3278.1,0.00852635]
[1642423390321,1.64766795,3278.9,3278.1,0.00852635]
[1642423390718,1.64766795,3278.9,3277.9,0.45666639]
[1642423390918,1.64766795,3278.9,3278.0,0.00909477]
[1642423391123,1.34766795,3278.8,3278.0,0.00909477]
[1642423395162,1.50709559,3278.5,3278.0,0.00909477]
[1642423396471,1.34766795,3278.4,3278.0,0.00909477]
[1642423397510,0.3,3278.3,3278.0,0.00909477]
[1642423399212,1.34766795,3278.2,3278.0,0.00909477]
[1642423399812,1.34766795,3278.2,3277.8,0.01023162]
[1642423400011,1.34766795,3278.2,3277.1,5.34740828]
[1642423400012,1.34766795,3278.2,3277.5,1.32656915]
[1642423400414,1.34766795,3278.2,3277.6,0.01136847]
[1642423400862,1.53059851,3278.0,3277.6,0.01136847]
[1642423401262,1.53059851,3278.0,3277.3,2.53998974]
[1642423401466,1.53059851,3278.0,3277.4,0.01250531]
[1642423402062,1.53059851,3278.0,3277.1,6.713916]
[1642423402063,1.53059851,3278.0,3277.3,1.48691721]
[1642423402263,0.3,3278.2,3277.3,1.48691721]
[1642423402463,1.34766795,3277.9,3277.4,0.01250531]
[1642423403467,1.34766795,3278.2,3277.4,0.01250531]
[1642423403864,1.64766795,3278.2,3277.4,0.01250531]
[1642423405513,1.34766795,3278.1,3277.4,0.01250531]
[1642423407317,1.34766795,3278.1,3277.5,1.05066489]
[1642423407717,1.34766795,3278.1,3277.6,0.01136847]
[1642423408761,1.34766795,3278.1,3277.4,0.01250531]
[1642423409968,1.34766795,3278.1,3277.2,0.01364216]
[1642423410164,1.37466139,3278.1,3277.2,0.01364216]
[1642423410766,1.46057778,3277.4,3277.2,0.01364216]
[1642423411769,1.76057778,3277.4,3277.2,0.01364216]
[1642423412612,1.76057778,3277.4,3276.6,0.0170527]
[1642423412813,1.34766795,3277.3,3276.6,0.0170527]
[1642423413012,1.64766795,3277.3,3276.6,0.0170527]
[1642423413713,1.64766795,3277.3,3276.7,0.90242939]
[1642423414113,1.64766795,3277.3,3276.8,0.01591585]
[1642423414714,1.43391232,3276.9,3276.8,0.01591585]
[1642423414915,1.43391232,3276.9,3276.6,0.0170527]
[1642423415314,1.37457947,3277.2,3276.6,0.0170527]
[1642423415962,0.02691152,3277.2,3276.6,0.0170527]
[1642423416364,1.48668214,3276.8,3276.6,0.0170527]
[1642423416563,0.3,3276.7,3276.6,0.0170527]
[1642423416763,1.2022,3276.7,3276.6,0.0170527]
[1642423416962,1.2022,3276.7,3276.4,0.01818955]
[1642423417166,1.2022,3276.7,3275.8,0.02160009]
[1642423417564,1.18272939,3276.0,3275.8,0.02160009]
[1642423417964,2.12172939,3276.0,3275.8,0.02160009]
[1642423418363,2.12172939,3276.0,3275.5,0.02330536]
[1642423418564,0.3,3275.9,3275.5,0.02330536]
[1642423418765,0.3,3275.9,3275.3,0.02444221]
[1642423420329,0.02681434,3275.8,3275.3,0.02444221]
[1642423420527,0.70941434,3275.8,3275.3,0.02444221]
[1642423420728,1.47275434,3275.8,3275.1,0.02557905]
[1642423424565,1.47275434,3275.8,3275.0,0.02614748]
[1642423425365,3.53621434,3275.8,3275.0,0.02614748]
[1642423425566,1.3,3275.7,3274.9,0.0267159]
[1642423425866,0.76355,3275.5,3274.7,0.02785275]
[1642423426067,0.3,3275.4,3274.7,0.02785275]
[1642423426367,0.3,3275.4,3274.2,0.03069486]
[1642423427615,1.26024725,3274.8,3274.2,0.03069486]
[1642423427831,1.56024725,3274.8,3274.2,0.03069486]
[1642423428217,1.56024725,3274.8,3274.0,3.33]
[1642423428218,1.56024725,3274.8,3274.1,0.03126329]
[1642423428414,0.3,3274.8,3274.1,0.03126329]
[1642423428617,1.2181,3275.3,3274.1,0.03126329]
[1642423428821,1.2181,3275.3,3274.1,2.44398212]
[1642423429214,1.2181,3275.3,3274.2,0.03069486]
[1642423429417,1.5181,3275.3,3274.2,0.03069486]
[1642423429617,1.12752531,3275.0,3274.2,0.03069486]
[1642423429817,1.12752531,3275.0,3274.3,1.13481881]
[1642423430017,1.12752531,3275.0,3274.2,0.03069486]
[1642423430215,1.12752531,3275.0,3274.0,3.33]
[1642423430216,1.12752531,3275.0,3274.4,0.02955802]
[1642423430422,1.12752531,3275.0,3274.0,3.33]
[1642423430423,1.12752531,3275.0,3274.1,0.03126329]
[1642423430862,1.42752531,3275.0,3274.1,0.03126329]
[1642423431462,1.42752531,3275.0,3274.1,1.49715193]
[1642423431664,1.42752531,3275.0,3274.1,0.03126329]
[1642423431862,1.42752531,3275.0,3274.2,0.03069486]
[1642423432061,1.42752531,3275.0,3274.1,0.03126329]
[1642423438239,0.76358,3274.8,3274.1,0.03126329]
[1642423438471,0.3,3274.7,3274.1,0.03126329]
[1642423439067,0.3,3274.7,3274.0,3.33]
[1642423439268,0.3,3274.7,3274.0,3.31126329]
[1642423439468,0.00284212,3274.6,3274.0,3.31126329]
[1642423439867,0.0022737,3274.5,3274.0,3.31126329]
[1642423440268,0.00170527,3274.4,3274.0,3.31126329]
[1642423440667,0.00113685,3274.3,3274.0,3.31126329]
[1642423441469,0.00113685,3274.3,3274.1,2.34445154]
[1642423441868,0.00113685,3274.3,3274.1,2.36864473]
[1642423442717,0.00113685,3274.3,3274.1,2.32950068]
[1642423442919,0.00113685,3274.3,3274.0,3.31126329]
[1642423447269,0.00113685,3274.3,3273.7,1.1791]
[1642423447671,0.00113685,3274.3,3273.8,0.00170527]
[1642423447871,0.76479685,3274.3,3273.8,0.00170527]
[1642423448372,1.11304063,3273.5,3273.4,0.00397896]
[1642423449074,1.11304063,3273.5,3273.0,0.00625266]
[1642423449620,1.11304063,3273.5,3272.7,0.00795793]
[1642423450019,1.11304063,3273.5,3272.5,3.46296459]
[1642423450421,1.11304063,3273.5,3272.6,0.00852635]
[1642423452026,1.06304063,3273.5,3272.6,0.00852635]
[1642423452321,1.1823014,3272.9,3272.6,2.37780493]
[1642423452520,1.1823014,3272.9,3272.6,0.30852635]
[1642423452720,1.1823014,3272.9,3272.7,0.00795793]
[1642423453370,1.1823014,3272.9,3272.5,0.00909477]
[1642423454573,0.008,3273.5,3272.5,2.59144778]
[1642423454773,0.008,3273.5,3272.5,3.03144778]
[1642423454971,0.008,3273.5,3272.6,0.00852635]
[1642423456171,1.52575402,3273.3,3272.6,0.00852635]
[1642423458721,0.008,3272.9,3272.6,0.00852635]
[1642423458929,0.76479685,3274.3,3272.8,0.77584084]
[1642423459125,0.76479685,3274.3,3273.0,0.05988588]
[1642423459126,0.00113685,3274.3,3273.0,0.05988588]
[1642423459323,0.00113685,3274.3,3273.1,0.44]
[1642423459521,0.00113685,3274.3,3273.1,0.44568423]
[1642423459721,0.00113685,3274.3,3273.2,0.00511581]
[1642423460423,1.19645042,3273.4,3273.2,0.00511581]
[1642423460623,1.19645042,3273.4,3273.1,0.30568423]
[1642423460893,1.19645042,3273.4,3273.2,0.00511581]
[1642423461085,1.49645042,3273.4,3273.2,0.00511581]
[1642423461285,1.49645042,3273.4,3273.0,0.00625266]
[1642423461488,2.39705042,3273.4,3272.8,0.0073895]
[1642423462085,2.39705042,3273.4,3272.7,0.00795793]
[1642423462486,1.45355927,3272.8,3272.7,0.00795793]
[1642423463088,1.45355927,3272.8,3272.2,0.01080004]
[1642423463286,1.45355927,3272.8,3271.9,0.01250531]
[1642423463287,4.19617108,3272.8,3271.9,0.01250531]
[1642423463488,1.45355927,3272.8,3271.9,0.01250531]
[1642423463888,5.29275569,3272.8,3271.9,0.01250531]
[1642423464093,1.53427323,3272.0,3271.7,0.01364216]
[1642423464720,2.49507323,3272.0,3271.7,0.01364216]
[1642423465131,2.49507323,3272.0,3271.3,0.01591585]
[1642423465819,2.49507323,3272.0,3271.3,1.52544887]
[1642423466020,2.49507323,3272.0,3271.3,1.82544887]
[1642423466321,2.49507323,3272.0,3271.4,0.01534743]
[1642423466920,2.49507323,3272.0,3271.4,0.80482505]
[1642423467321,2.49507323,3272.0,3271.5,0.01477901]
[1642423468473,1.27588396,3271.5,3271.1,0.0170527]
[1642423468868,1.57588396,3271.5,3271.1,0.0170527]
[1642423469068,1.27588396,3271.5,3270.8,0.01875797]
[1642423470268,1.2935065,3270.9,3270.8,0.01875797]
[1642423471773,2.6417065,3270.9,3270.8,0.01875797]
[1642423472228,12.0,3270.8,3270.0,0.00960744]
[1642423472623,12.0,3270.8,3270.1,0.00397897]
[1642423472826,0.76457,3270.7,3270.1,0.00397897]
[1642423473225,2.6417065,3270.9,3270.1,0.00397897]
[1642423473424,0.3,3270.7,3270.1,0.00397897]
[1642423473625,3.0817065,3270.9,3270.1,0.00397897]
[1642423473826,1.50225601,3270.2,3270.1,0.00397897]
[1642423474629,2.40985601,3270.2,3270.1,0.00397897]
[1642423476975,5.17372723,3270.2,3270.1,0.00397897]
[1642423477171,2.40985601,3270.2,3270.1,0.00397897]
[1642423477571,1.50225601,3270.2,3270.1,0.00397897]
[1642423479374,1.928,3270.9,3270.1,0.00397897]
[1642423479640,0.76453,3271.0,3270.1,0.00397897]
[1642423480826,1.32894757,3270.6,3270.1,0.00397897]
[1642423481928,0.13819997,3271.1,3270.1,0.00397897]
[1642423482331,0.00113685,3271.0,3270.1,0.00397897]
[1642423482931,1.14163033,3271.0,3270.5,1.19756902]
[1642423483377,1.14163033,3271.0,3270.6,0.00113685]
[1642423484877,0.00113685,3271.0,3270.6,0.00113685]
[1642423488625,1.32168006,3270.9,3270.6,0.00113685]
[1642423488823,2.27978006,3270.9,3270.6,0.00113685]
[1642423489023,2.57978006,3270.9,3270.6,0.00113685]
[1642423489224,2.57978006,3270.9,3270.0,0.00960744]
[1642423489225,23.15,3270.8,3270.0,0.00960744]
[1642423489423,23.15,3270.8,3268.5,10.7622]
[1642423489424,2.526916,3270.7,3268.5,10.7622]
[1642423489626,21.256916,3270.7,3270.1,0.00284212]
[1642423489828,18.73,3270.7,3270.1,0.00284212]
[1642423490228,18.73,3270.7,3268.7,0.01080004]
[1642423490426,0.7647,3270.4,3269.3,1.16006992]
[1642423490625,1.1002,3270.4,3269.3,1.16006992]
[1642423490866,0.3,3270.2,3269.3,1.116891]
[1642423491067,2.70026172,3270.1,3269.3,1.116891]
[1642423491270,2.70424068,3270.1,3269.3,1.116891]
[1642423491467,0.00341054,3270.0,3268.5,10.7622]
[1642423491667,0.00341054,3270.0,3268.5,12.18660796]
[1642423491668,1.12938939,3269.5,3268.5,12.18660796]
[1642423491869,1.90358939,3269.5,3268.6,0.00454739]
[1642423492375,0.7742,3269.5,3268.6,0.00454739]
[1642423492568,0.7742,3269.5,3268.7,0.5352795]
[1642423492767,0.7742,3269.5,3268.6,0.00454739]
[1642423492967,0.2528,3269.6,3268.8,0.00341054]
[1642423493567,1.54798667,3269.4,3269.0,1.32765593]
[1642423493968,1.54798667,3269.4,3269.1,0.00170527]
[1642423494169,2.51948667,3269.4,3269.1,0.00170527]
[1642423495126,0.9715,3269.4,3269.1,0.00170527]
[1642423495322,0.02878882,3269.4,3269.1,0.00170527]
[1642423496927,1.20153406,3269.2,3269.1,0.00170527]
[1642423497125,1.88763406,3269.2,3269.1,0.00170527]
[1642423497527,2.18763406,3269.2,3269.1,0.00170527]
[1642423497728,2.18763406,3269.2,3268.1,0.0073895]
[1642423497925,0.76502,3269.0,3268.0,0.00795793]
[1642423498375,0.3,3268.9,3268.0,0.00795793]
[1642423498776,0.3,3268.9,3267.9,0.00852635]
[1642423498977,1.12041853,3268.1,3267.9,0.00852635]
[1642423499179,0.669,3268.4,3267.9,0.00852635]
[1642423500880,0.2415,3268.5,3267.9,0.00852635]
[1642423501076,1.26373611,3268.4,3267.9,0.00852635]
[1642423502128,3.6343509,3268.3,3267.9,0.00852635]
[1642423502321,0.76519,3268.3,3267.9,0.00852635]
[1642423502522,0.76519,3268.3,3267.8,3.15258023]
[1642423502523,10.95,3268.1,3267.8,3.15258023]
[1642423502723,2.90451737,3268.0,3267.8,3.15258023]
[1642423502926,4.00986703,3268.0,3267.8,3.15258023]
[1642423503123,2.9988092,3267.9,3267.8,3.15258023]
[1642423503323,1.41046465,3267.8,3266.4,14.6667]
[1642423503526,3.28211021,3267.7,3266.4,14.6667]
[1642423503723,0.3,3267.7,3266.5,0.00795793]
[1642423503922,2.9536247,3267.9,3266.5,0.00795793]
[1642423504223,0.30113685,3268.1,3266.5,0.00795793]
[1642423504422,0.30113685,3268.1,3267.6,1.29204205]
[1642423504624,0.30113685,3268.1,3266.8,1.30033441]
[1642423504625,1.09564896,3268.0,3266.8,1.30033441]
[1642423504823,1.09564896,3268.0,3267.7,0.00113685]
[1642423504824,3.81890357,3268.0,3267.7,0.00113685]
[1642423505024,3.81890357,3268.0,3266.9,0.00568424]
[1642423505224,0.02674318,3267.6,3266.6,0.00738951]
[1642423505429,0.02674318,3267.6,3266.8,0.01231811]
[1642423505872,0.02674318,3267.6,3267.2,1.34684216]
[1642423506173,0.02674318,3267.6,3267.3,0.00341054]
[1642423506374,0.02674318,3267.6,3267.4,1.48857226]
[1642423506573,0.02674318,3267.6,3267.4,1.78857226]
[1642423506773,0.02674318,3267.6,3267.5,0.0022737]
[1642423507474,0.00113685,3268.1,3267.5,1.52542212]
[1642423507674,0.00113685,3268.1,3267.6,0.03974848]
[1642423507876,0.00113685,3268.1,3267.7,1.54275898]
[1642423508080,0.00113685,3268.1,3267.7,1.88156226]
[1642423508474,0.00113685,3268.1,3267.7,2.64636226]
[1642423508677,0.00113685,3268.1,3267.8,0.03177567]
[1642423508878,9.3011149,3270.0,3268.0,0.08143987]
[1642423509074,9.3011149,3270.0,3268.2,0.01223737]
[1642423509075,4.1321149,3270.0,3268.2,0.01223737]
[1642423509276,0.00852635,3269.6,3269.3,1.46922444]
[1642423509628,0.00795792,3269.5,3269.3,0.3]
[1642423509821,0.00795792,3269.5,3268.5,1.0705318]
[1642423509822,1.40081501,3269.5,3268.6,1.36527699]
[1642423510022,0.0073895,3269.4,3268.6,1.66527699]
[1642423510224,0.0073895,3269.4,3268.6,1.70148192]
[1642423510424,0.00682108,3269.3,3268.6,1.70148192]
[1642423510823,0.00625265,3269.2,3268.7,0.44]
[1642423511023,0.00625265,3269.2,3268.7,0.47102318]
[1642423511224,0.00568423,3269.1,3268.9,1.24033078]
[1642423511424,0.00568423,3269.1,3268.9,1.54033078]
[1642423511723,1.43151563,3269.5,3268.9,1.54033078]
[1642423511724,0.00511581,3269.0,3268.9,1.54033078]
[1642423512126,0.00511581,3269.0,3268.9,13.02746701]
[1642423512324,0.00511581,3269.0,3268.9,1.57746701]
[1642423512524,0.00511581,3269.0,3268.9,2.07555718]
[1642423513130,0.00511581,3269.0,3268.9,11.72555718]
[1642423513371,0.00511581,3269.0,3268.9,11.19033078]
[1642423514370,1.25609743,3269.0,3268.9,11.19033078]
[1642423514569,4.23857218,3270.5,3268.9,11.19033078]
[1642423514570,4.23857218,3270.5,3269.0,11.1]
[1642423514769,4.23857218,3270.5,3269.6,1.43736978]
[1642423514770,1.22285349,3270.3,3269.6,1.43736978]
[1642423514970,1.22285349,3270.3,3269.3,0.79366774]
[1642423515170,1.22285349,3270.3,3269.4,0.03522678]
[1642423515371,1.22285349,3270.3,3269.6,1.28678916]
[1642423515570,1.22285349,3270.3,3269.6,1.61783455]
[1642423515776,1.22285349,3270.3,3269.6,0.3]
[1642423515971,1.09866187,3269.8,3269.4,0.03592821]
[1642423516172,1.09866187,3269.8,3269.3,0.3]
[1642423516370,0.00397896,3269.7,3269.3,0.3]
[1642423516670,1.09866187,3269.8,3268.9,0.93007385]
[1642423516671,0.00341054,3269.6,3268.9,0.9174586]
[1642423516871,0.00341054,3269.6,3268.7,0.44]
[1642423517144,0.00284211,3269.5,3268.9,1.10077889]
[1642423517530,0.00227369,3269.4,3268.8,0.00113685]
[1642423517929,0.00170527,3269.3,3269.0,1.11188141]
[1642423518334,0.00113684,3269.2,3269.0,1.41188141]
[1642423518530,0.00113684,3269.2,3269.0,0.3]
[1642423518729,0.00341054,3269.6,3268.8,0.30113685]
[1642423518928,0.00341054,3269.6,3268.8,0.00113685]
[1642423519129,1.1334084,3269.3,3268.8,0.00113685]
[1642423519537,1.25211846,3269.2,3268.8,0.30113685]
[1642423519833,1.25211846,3269.2,3268.8,0.3]
[1642423520130,1.25211846,3269.2,3268.6,0.3022737]
[1642423520330,1.25211846,3269.2,3268.6,0.0022737]
[1642423520530,1.25211846,3269.2,3268.7,0.00170527]
[1642423520730,1.26919672,3268.8,3268.4,0.00341054]
[1642423520982,1.25211846,3269.2,3268.2,0.03032899]
[1642423521177,1.25211846,3269.2,3268.2,2.54493959]
[1642423521377,1.25211846,3269.2,3268.3,0.00397897]
[1642423521875,1.25211846,3269.2,3268.5,1.55464113]
[1642423522077,1.25211846,3269.2,3268.6,1.16350643]
[1642423522381,1.25211846,3269.2,3268.7,0.03185023]
[1642423522777,1.25211846,3269.2,3268.8,0.00113685]
[1642423522977,1.846e-05,3269.2,3268.9,0.01220814]
[1642423523378,1.846e-05,3269.2,3269.0,0.00113684]
[1642423523582,1.846e-05,3269.2,3269.0,0.38340854]
[1642423523777,1.846e-05,3269.2,3269.1,12.31090302]
[1642423524076,1.846e-05,3269.2,3269.1,12.34592446]
[1642423524722,1.49304603,3270.0,3269.3,0.382232]
[1642423524925,0.13819997,3270.5,3269.4,2.57183608]
[1642423525123,0.13819997,3270.5,3269.4,2.90905899]
[1642423525124,0.00397897,3269.9,3269.4,2.90905899]
[1642423525323,2.1988813,3269.9,3269.4,2.90905899]
[1642423525521,0.00341054,3269.8,3269.5,1.0]
[1642423525723,0.00341054,3269.8,3269.6,2.54342091]
[1642423526023,0.00284212,3269.7,3269.6,18.38115147]
[1642423527628,0.00284212,3269.7,3269.6,0.3]
[1642423527826,0.00284212,3269.7,3269.5,3.74890295]
[1642423528025,0.00284212,3269.7,3269.5,0.3]
[1642423528225,0.0022737,3269.6,3269.4,1.74]
[1642423528678,1.52061226,3270.0,3269.4,3.16627519]
[1642423528679,0.00170527,3269.5,3269.4,3.16627519]
[1642423528882,0.00170527,3269.5,3269.4,5.67048248]
[1642423529076,0.00170527,3269.5,3269.4,18.17048248]
[1642423529976,0.00170527,3269.5,3269.4,27.02048248]
[1642423530479,0.00170527,3269.5,3269.4,18.17048248]
[1642423531877,0.00170527,3269.5,3269.4,13.37048248]
[1642423533427,0.00170527,3269.5,3269.4,11.97496004]
[1642423533629,0.00170527,3269.5,3269.4,9.47075275]
[1642423533828,0.00170527,3269.5,3269.4,1.77075275]
[1642423534130,0.00170527,3269.5,3269.4,0.77075275]
[1642423534730,0.00170527,3269.5,3269.4,1.14223753]
[1642423534930,0.00170527,3269.5,3269.4,7.49223753]
[1642423535330,0.00170527,3269.5,3269.4,8.49223753]
[1642423535729,0.00170527,3269.5,3269.4,7.12075275]
[1642423535971,0.00170527,3269.5,3269.4,16.57075275]
[1642423536371,0.00170527,3269.5,3269.4,17.57075275]
[1642423536571,1.55978737,3270.5,3269.5,21.8]
[1642423536779,1.55978737,3270.6,3269.7,2.2928186]
[1642423536972,0.00511581,3270.4,3269.8,0.47878137]
[1642423537179,0.00511581,3270.4,3269.8,1.77878137]
[1642423537375,0.00454739,3270.3,3269.8,1.77878137]
[1642423537672,0.00397897,3270.2,3269.8,1.77878137]
[1642423538073,0.00341054,3270.1,3269.8,1.77878137]
[1642423538275,0.00341054,3270.1,3270.0,17.14011529]
[1642423538476,1.40247249,3270.7,3270.0,1.7203316]
[1642423538875,1.40247249,3270.7,3270.0,0.33021631]
[1642423538876,0.00625266,3270.6,3270.0,0.33021631]
[1642423539075,0.00625266,3270.6,3269.9,0.33196758]
[1642423539380,0.00568424,3270.5,3269.9,0.77350178]
[1642423539632,0.00568424,3270.5,3269.9,0.74]
[1642423539826,0.00511581,3270.4,3269.7,0.03290394]
[1642423540029,0.00511581,3270.4,3269.3,4.9128]
[1642423540228,0.00454739,3270.3,3269.3,4.9128]
[1642423540527,1.32429157,3270.2,3269.3,4.9128]
[1642423540727,1.32429157,3270.2,3269.3,1.2492]
[1642423541028,0.00341054,3270.1,3269.0,1.25576768]
[1642423541426,1.28121427,3270.0,3269.1,0.00227369]
[1642423541627,1.58121427,3270.0,3269.1,0.00227369]
[1642423541827,1.37919774,3269.5,3269.1,0.00227369]
[1642423542131,2.13499774,3269.5,3269.1,0.00227369]
[1642423542530,1.70031874,3269.4,3269.1,0.00227369]
[1642423542728,1.70031874,3269.4,3268.6,0.00511581]
[1642423542926,1.40031874,3269.4,3268.5,0.00568423]
[1642423543128,1.35905668,3268.5,3268.4,0.00625265]
[1642423543977,2.21305668,3268.5,3268.4,0.00625265]
[1642423544578,2.21305668,3268.5,3267.5,4.95813084]
[1642423544579,2.21305668,3268.5,3267.6,0.01080004]
[1642423545078,1.35905668,3268.5,3267.6,0.01080004]
[1642423546277,5.1001,3269.3,3267.6,0.01080004]
[1642423546278,1.31708414,3268.0,3267.6,0.01080004]
[1642423546783,1.31708414,3268.0,3267.3,0.77777615]
[1642423546784,1.31708414,3268.0,3267.4,0.01193689]
[1642423547433,1.61708414,3268.0,3267.2,0.01307374]
[1642423547625,1.45238155,3267.3,3267.1,1.3952902]
[1642423547825,1.45238155,3267.3,3266.9,1.25463084]
[1642423548226,1.45238155,3267.3,3267.0,0.01421058]
[1642423549830,1.45238155,3267.3,3266.8,0.01534743]
[1642423550032,1.45238155,3267.3,3266.7,0.01591585]
[1642423550630,1.51218319,3266.8,3266.7,0.01591585]
[1642423553285,1.81218319,3266.8,3266.7,0.01591585]
[1642423553483,16.55128319,3266.8,3266.7,1.585e-05]
[1642423553683,16.55128319,3266.8,3265.9,0.02046324]
[1642423553684,15.3099,3266.8,3265.9,0.02046324]
[1642423553883,0.7655554,3266.5,3265.8,0.00513166]
[1642423554084,1.6051554,3266.5,3265.8,0.00513166]
[1642423554285,1.6051554,3266.5,3265.7,0.00570009]
[1642423554752,4.2503,3267.5,3265.6,1.45161163]
[1642423554941,0.00397897,3266.4,3265.6,2.70624247]
[1642423555141,3.69840756,3267.8,3265.6,2.70624247]
[1642423555142,0.0096632,3267.4,3266.1,1.25718183]
[1642423555344,3.80952952,3267.5,3266.1,1.25718183]
[1642423555345,0.00341054,3266.3,3266.1,1.25718183]
[1642423555541,0.76532,3267.5,3265.6,1.25463084]
[1642423555542,0.00909478,3267.3,3265.6,1.25463084]